Cogmind - Beta 12 @@@ ROGUE MODE // 2023.05.14 @ 16:46:47 Player: Mr Goldstein Result: Destroyed by P-60 Hacker with Shock Rifle Performance ------------- Evolutions (1) 500 Regions Visited (5) 1000 Robots Destroyed (0) 0 Value Destroyed (0) 0 Prototype IDs (0) 0 Alien Tech Used (0) 0 Bonus (200) 200 TOTAL SCORE: 1700 Bonus ------- Pacifist 200 Cogmind --------- Core Integrity 0/400 Matter 294/300 Energy 99/100 System Corruption 2% Temperature Cool (0) Movement Core (50) Location -9/Recycling Parts ------- > --- POWER (1) -------- (None) > --- PROPULSION (2) --- (None) > --- UTILITY (4) ------ Scrap Engine > --- WEAPON (2) ------- (None) > --- INVENTORY (5) ---- (None) Peak State ------------ > --- POWER ------------ (None) > --- PROPULSION ------- (None) > --- UTILITY ---------- Scrap Engine > --- WEAPON ----------- (None) > --- INVENTORY -------- (None) [Rating: 16] Favorites ----------- Power None Propulsion None Utility Scrap Engine Device Scrap Engine Weapon None Build | -11 -10 -10 -9 -9 -9 ------- Run | Jun Mat Min Mat Sto Rec Slots Evolved 2 | . . . 2 . . Power . | . . . . . . Propulsion . | . . . . . . Utility 2 | . . . 2 . . Weapon . | . . . . . . Parts Attached 1 | . . . . . 1 Power . | . . . . . . Engine . | . . . . . . Core . | . . . . . . Reactor . | . . . . . . Propulsion . | . . . . . . Treads . | . . . . . . Leg . | . . . . . . Wheel . | . . . . . . Hover . | . . . . . . Flight . | . . . . . . Utility 1 | . . . . . 1 Device 1 | . . . . . 1 Storage . | . . . . . . Processor . | . . . . . . Hackware . | . . . . . . Protection . | . . . . . . Artifact . | . . . . . . Weapon . | . . . . . . Energy Gun . | . . . . . . Energy Cannon . | . . . . . . Ballistic Gun . | . . . . . . Ballistic Cannon . | . . . . . . Launcher . | . . . . . . Special Weapon . | . . . . . . Impact Weapon . | . . . . . . Slashing Weapon . | . . . . . . Piercing Weapon . | . . . . . . Special Melee Weapon . | . . . . . . Unidentified Prototypes . | . . . . . . Parts Lost . | . . . . . . Power . | . . . . . . Propulsion . | . . . . . . Utility . | . . . . . . Weapon . | . . . . . . Highest Loss Streak . | . . . . . . To Critical Strikes . | . . . . . . Average Slot Usage (%) 5 | . . . . . 9 Device 5 | . . . . . 9 Naked Turns 138 | . 29 36 10 32 31 Heaviest Build 1 | . . . . . 1 Greatest Support 3 | 3 3 3 3 3 3 Greatest Overweight (x) . | . . . . . . Average Overweight (x) . | . . . . . . Largest Inventory Capacity 5 | 5 5 5 5 5 5 Average Capacity 5 | 5 5 5 5 5 5 Most Carried . | . . . . . . Average Carried . | . . . . . . Final Capacity 5 | 5 5 5 5 5 5 Final Carried . | . . . . . . Class Distribution -------------------- 100% | Mutant Dominant Class ---------------- Mutant | -10/Materials Mutant | -10/Mines Mutant | -9/Materials Mutant | -9/Storage Mutant | -9/Recycling Resources | -11 -10 -10 -9 -9 -9 ----------- Run | Jun Mat Min Mat Sto Rec Matter Collected 200 | 200 . . . . . Remotely . | . . . . . . Salvage Created . | . . . . . . Parts . | . . . . . . Haulers Intercepted . | . . . . . . Recyclers Shooed . | . . . . . . Parts Field Recycled . | . . . . . . Retrieved Matter . | . . . . . . Parts Self-Destructed . | . . . . . . Prevented . | . . . . . . Kills | -11 -10 -10 -9 -9 -9 ------- Run | Jun Mat Min Mat Sto Rec Combat Hostiles Destroyed . | . . . . . . Classes Destroyed . | . . . . . . Best Kill Streak . | . . . . . . Combat Bots Only . | . . . . . . Max Kills in Single Turn . | . . . . . . Gunslinging . | . . . . . . Exploded . | . . . . . . Melee . | . . . . . . Uniques/NPCs Destroyed . | . . . . . . Combat | -11 -10 -10 -9 -9 -9 -------- Run | Jun Mat Min Mat Sto Rec Damage Taken 666 | . 55 76 . 58 477 Core 533 | . 55 76 . 58 344 Absorbed by Shields . | . . . . . . Core Remaining (%) 73 | 100 . 47 . . . Volleys Fired . | . . . . . . Largest . | . . . . . . Hottest . | . . . . . . Shots Fired . | . . . . . . Gun . | . . . . . . Cannon . | . . . . . . Launcher . | . . . . . . Special . | . . . . . . Kinetic . | . . . . . . Thermal . | . . . . . . Explosive . | . . . . . . Electromagnetic . | . . . . . . Robot Hit Streak . | . . . . . . Robot Miss Streak . | . . . . . . Penetration Max . | . . . . . . Secondary Targets . | . . . . . . Shots Hit Robots . | . . . . . . Core Hits . | . . . . . . Critical Kills . | . . . . . . Critical Parts Destroyed . | . . . . . . Critical Strikes . | . . . . . . Melee Attacks . | . . . . . . Impact . | . . . . . . Slashing . | . . . . . . Piercing . | . . . . . . Sneak Attacks . | . . . . . . Combat Hostiles . | . . . . . . Follow-up Attacks . | . . . . . . Damage Inflicted 23 | . . 15 . . 8 Guns . | . . . . . . Cannons . | . . . . . . Explosions . | . . . . . . Melee . | . . . . . . Ramming 23 | . . 15 . . 8 Kinetic . | . . . . . . Thermal . | . . . . . . Explosive . | . . . . . . Electromagnetic . | . . . . . . Impact . | . . . . . . Slashing . | . . . . . . Piercing . | . . . . . . Highest Corruption 2 | . . . . . 2 Average Corruption 1 | . . . . . 1 Corruption Purged . | . . . . . . Corruption Blocked . | . . . . . . Overload Shots . | . . . . . . Overflow Damage . | . . . . . . Projectiles . | . . . . . . Explosions . | . . . . . . Melee . | . . . . . . Knockbacks 1 | . . . . . 1 Impact 1 | . . . . . 1 Kinetic . | . . . . . . Secondary . | . . . . . . Self-Inflicted Damage 10 | . . 6 . . 4 Shots . | . . . . . . Rammed 8 | . . 7 . . 1 Targets Rammed 8 | . . 7 . . 1 Kicked . | . . . . . . Crushed . | . . . . . . Highest Temperature . | . . . . . . Average Temperature . | . . . . . . Received Heat Transfer 72 | . . . . 18 54 Siege Activations . | . . . . . . Robots Corrupted . | . . . . . . Combat Hostiles . | . . . . . . Parts Fried . | . . . . . . Impact Corruptions . | . . . . . . Robots Melted . | . . . . . . Combat Hostiles . | . . . . . . Parts Melted . | . . . . . . Heat Transferred . | . . . . . . Parts Sabotaged . | . . . . . . Parts Stolen . | . . . . . . Parts Stripped . | . . . . . . Power Chain Reactions . | . . . . . . Missiles Intercepted . | . . . . . . Alert | -11 -10 -10 -9 -9 -9 ------- Run | Jun Mat Min Mat Sto Rec Peak Influence 15 | . 15 5 1 15 5 Initial 5 | . . 5 1 . 5 Average 4 | . 2 5 1 2 5 Maximum Alert Level . | . . . . . . Low Security (%) 100 | 100 100 100 100 100 100 Level 1 . | . . . . . . Level 2 . | . . . . . . Level 3 . | . . . . . . Level 4 . | . . . . . . Level 5 . | . . . . . . High Security . | . . . . . . Max Security . | . . . . . . Squads Dispatched . | . . . . . . Investigation . | . . . . . . Extermination . | . . . . . . Reinforcement . | . . . . . . Assault . | . . . . . . Garrison . | . . . . . . Intercept . | . . . . . . Searches Triggered . | . . . . . . Construction Impeded . | . . . . . . Haulers Reinforced . | . . . . . . Active Scanning Responses . | . . . . . . Cargo Convoy Interrupts . | . . . . . . Stealth | -11 -10 -10 -9 -9 -9 --------- Run | Jun Mat Min Mat Sto Rec Distress Signals 1 | . . 1 . . . Communications Jammed . | . . . . . . Distress Signals . | . . . . . . Times Spotted 17 | . 5 3 3 1 5 Peak Tracking Total 5 | . 5 3 3 2 5 Tactical Retreats . | . . . . . . Traps | -11 -10 -10 -9 -9 -9 ------- Run | Jun Mat Min Mat Sto Rec Traps Triggered . | . . . . . . Indirectly . | . . . . . . Trap Hack Attempts . | . . . . . . Triggered . | . . . . . . Disarmed . | . . . . . . Reprogrammed . | . . . . . . Reused . | . . . . . . Traps Extracted . | . . . . . . Installed . | . . . . . . Triggered . | . . . . . . Machines | -11 -10 -10 -9 -9 -9 ---------- Run | Jun Mat Min Mat Sto Rec Machines Disabled . | . . . . . . Max in Single Turn . | . . . . . . Machines Repaired . | . . . . . . Machines Sabotaged . | . . . . . . Overloaded Fab Kills . | . . . . . . Hacking | -11 -10 -10 -9 -9 -9 --------- Run | Jun Mat Min Mat Sto Rec Machines Accessed . | . . . . . . Terminals . | . . . . . . Fabricators . | . . . . . . Repair Stations . | . . . . . . Recycling Units . | . . . . . . Scanalyzers . | . . . . . . Garrison Access . | . . . . . . Total Hacks . | . . . . . . Successful . | . . . . . . Failed . | . . . . . . Catastrophic . | . . . . . . Database Lockouts . | . . . . . . Manual 1 | . . . . 1 . Terminals . | . . . . . . Fabricators . | . . . . . . Repair Stations . | . . . . . . Recycling Units . | . . . . . . Scanalyzers . | . . . . . . Garrison Access . | . . . . . . Terminal Hacks . | . . . . . . Fabricator Hacks . | . . . . . . Repair Station Hacks . | . . . . . . Recycling Unit Hacks . | . . . . . . Scanalyzer . | . . . . . . Garrison Access Hacks . | . . . . . . Unauthorized Hacks . | . . . . . . Terminals . | . . . . . . Fabricators . | . . . . . . Repair Stations . | . . . . . . Recycling Units . | . . . . . . Scanalyzers . | . . . . . . Garrison Access . | . . . . . . Data Cores Recovered . | . . . . . . Used . | . . . . . . Hacking Detections 1 | . . . . 1 . Full Trace Events . | . . . . . . Feedback Events . | . . . . . . Feedback Blocked . | . . . . . . Robot Schematics Acquired . | . . . . . . Robots Built . | . . . . . . Authchips . | . . . . . . Time . | . . . . . . Total Robot Build Rating . | . . . . . . Part Schematics Acquired . | . . . . . . Parts Built . | . . . . . . Authchips . | . . . . . . Time . | . . . . . . Total Part Build Rating . | . . . . . . Parts Repaired . | . . . . . . Time . | . . . . . . Parts Recycled . | . . . . . . Recycled Matter . | . . . . . . Retrieved Matter . | . . . . . . Retrieved Components . | . . . . . . Parts Scanalyzed . | . . . . . . Part Schematics Acquired . | . . . . . . Parts Damaged . | . . . . . . Bothacking | -11 -10 -10 -9 -9 -9 ------------ Run | Jun Mat Min Mat Sto Rec Used RIF Installer . | . . . . . . Robots Hacked . | . . . . . . Non-combat . | . . . . . . Combat . | . . . . . . Robot Hacks Applied . | . . . . . . Relay Couplers Released . | . . . . . . Fabnet Peak Effective % . | . . . . . . Robots Rewired . | . . . . . . Allies Hacked . | . . . . . . Hacks Repelled . | . . . . . . Allies | -11 -10 -10 -9 -9 -9 -------- Run | Jun Mat Min Mat Sto Rec Total Allies . | . . . . . . Largest Group . | . . . . . . Highest-Rated Group . | . . . . . . Highest-Rated Ally . | . . . . . . Total Orders . | . . . . . . Ally Attacks . | . . . . . . Total Damage . | . . . . . . Kills . | . . . . . . Allies Corrupted . | . . . . . . Allies Melted . | . . . . . . Intel | -11 -10 -10 -9 -9 -9 ------- Run | Jun Mat Min Mat Sto Rec Robot Analysis Total . | . . . . . . Derelict Logs Recovered . | . . . . . . Drone Launches . | . . . . . . Drone Recoveries . | . . . . . . Exploration | -11 -10 -10 -9 -9 -9 ------------- Run | Jun Mat Min Mat Sto Rec Turns Passed 288 | 10 29 36 10 32 171 Spaces Moved 556 | 21 57 58 20 64 336 Core 556 | 21 57 58 20 64 336 Treads . | . . . . . . Legs . | . . . . . . Wheels . | . . . . . . Hover . | . . . . . . Flight . | . . . . . . Fastest Speed 50 | 50 50 50 50 50 50 Average Speed 50 | 50 50 50 50 50 50 Slowest Speed 50 | 50 50 50 50 50 50 Overloaded Moves . | . . . . . . Propulsion Burnouts . | . . . . . . Robots Hopped . | . . . . . . Cave-ins Triggered . | . . . . . . Exploration Rate (%) 21 | 3 15 24 4 13 68 Regions Visited 5 Branch Regions 3 Pre-discovered Areas . | . . . . . . Known Exits Taken . | . . . . . . Unknown Exits Taken 5 | 1 1 1 1 1 . Scrap Searched . | . . . . . . Spaces Dug . | . . . . . . Terrain Destroyed . | . . . . . . Melee . | . . . . . . Projectile . | . . . . . . AOE . | . . . . . . Terrain Rammed . | . . . . . . Walls Destroyed . | . . . . . . Machines Disabled . | . . . . . . Actions | -11 -10 -10 -9 -9 -9 --------- Run | Jun Mat Min Mat Sto Rec Total 560 | 20 56 64 19 63 338 Wait . | . . . . . . Move 551 | 20 56 57 19 63 336 Hop . | . . . . . . Pick Up . | . . . . . . Fast Attach 1 | . . . . . 1 Attach . | . . . . . . Detach . | . . . . . . Swap . | . . . . . . Drop . | . . . . . . Fire . | . . . . . . Melee . | . . . . . . Ram 8 | . . 7 . . 1 Kick . | . . . . . . Crush . | . . . . . . Escape Stasis . | . . . . . . Rewire . | . . . . . . Trap . | . . . . . . Miscellaneous . | . . . . . . Route ------- -11/Junkyard -10/Materials -10/Mines -9/Materials -9/Storage -9/Recycling History --------- Turn | Location | Event 4 | -11/Junkyard | Discovered new exit (range 15) 11 | -11/Junkyard | Entered Materials 34 | -10/Materials | Discovered new exit (range 13) 40 | -10/Materials | Entered Mines 74 | -10/Mines | Discovered new exit (range 4) 76 | -10/Mines | Entered Materials 76 | -9/Materials | Evolved 2 slots: Utility x2 79 | -9/Materials | Discovered new exit (range 16) 86 | -9/Materials | Entered Storage 116 | -9/Storage | Used back door to open Recycling access 116 | -9/Storage | Discovered new exit (range 5) 118 | -9/Storage | Entered Recycling 149 | -9/Recycling | Found Scrap Engine 208 | -9/Recycling | Core integrity fell below 50% 230 | -9/Recycling | Core integrity fell below 20% 289 | -9/Recycling | Destroyed by P-60 Hacker with Shock Rifle Last Messages --------------- >>\\IAMDERELICT Access granted. 00116_ EXIT=FOUND A mysterious object appears at your location! LOCATION=UNKNOWN GOAL=ESCAPE 00149_ Acquired Scrap Engine. 00168_ Y-45 Defender springs to life. 00175_ Material Processor disabled. 00183_ Door malfunctions. 00186_ R-06 Scavenger destroyed. 00225_ Y-45 Defender springs to life. 00230_ P-60 Hacker resets Y-45 Defender, system corruption cleaned. 00231_ Door malfunctions. 00235_ Slammed into U-05 Engineer. 00235_ U-05 Engineer knocked back. 00244_ P-60 Hacker resets U-05 Engineer, system corruption cleaned. 00255_ Connecting with Terminal... 00255_ Current location identified: Recycling 00288_ Purification Channel disabled. Map ----- +----------------------------------------------------+ | #?# #?# "Y" #??????? | | #?# #?# """ ??#??????? | | #?# #?########?????????? | | #?#+#####+##??????????????????? | | #?# #???# #???????####????????? | | ### #???# #??????? ??????? | | ?#"" #???# #?????? ??????? | | ?#"Y ##### ###???? ?????? | | ##"" +??? ?????? | | #### #??? #????? | | # ## #?? #????? | | #?? ????? | | +? #????? | | #? #????? | | ########+### # #????? | | ????#??????# # #????? | | ???## ????# + #????? | | ???# ??# ########+##+#?????? | | ##??# # ##"T"### #?????? | | #??# + #?????? | | #??# # #?????? | | #??# ??# """ """ #?????? | | #??# ????# """"""""" #?????? | | #??#??????# """"" #?????? | | #?????????# p ####??? | | #?????????+ p @ #??? | | ???????????################ #??? | | ??????????????????????????# #??? | | ??????????????????????????# #??? | | #????????????????##########+##?? | | ########?????????# #?? | | ##????????# #?? | | #????????# #?? | | #?????????# #?? | | #?????????# #?? | | #?????????# #?? | | ########?????????# #?? | | ?????????????????### #########?? | | ???????????????????##??????????? | | ???????????????????????????????? | | ???????????????????????????????? | | ???????????????????????????????? | | ???????????????????????????????? | | ???????????????????????????????? | | ???????????????????????????????? | | ???????????????????????????????? | | ???????????????????????????????? | | ???????????????????????????????? | | ???????????????????????????????? | | ???????????????????????????????? | +----------------------------------------------------+ Best States ------------- Heat Dissipation 28 Energy Generation 5 Energy Capacity 100 Matter Stores 300 Matter Capacity 300 Sight Range 16 Terrain Scan Density 10 Evasion (%) 50 Item Schematics ----------------- None Robot Schematics ------------------ None Fabricated ------------ Nothing Alien Tech Used ----------------- None Achievements -------------- None Challenges ------------ None Game ------ Seed LobotomyQuantumCanceller Manual? 0 Play Time 00:03:49 Cumulative 208.7 hours Start 2023.05.14 @ 16:44:17 End 2023.05.14 @ 16:46:47 Sessions 1 Manual Loads 0 Difficulty Rogue Special Mode None Game No. 598 Rogue 598 Adventurer 0 Explorer 0 Win Type - Total 9 Types 7/0/1/1/0/0/0/0/0 Lore% 81 Gallery% 80 Achievement% 71 Wizard Run 0 Options --------- ASCII 0 Keyboard 0 Movement Numpad Keybinds 0 Fullscreen 1 Font 16/SmallcapsGlow Map View 75x55 Tactical HUD 1 Map Filters NONE Filters NONE Steam 1 RUN: 3e6fccbb-15e5-4c5c-9b5b-70b4b1c8e54e